[Event "*** Qualifier 3: Titled Tuesday 3|2 Blitz"]
[Site "Chess.com"]
[Date "2017.04.18"]
[Round "5"]
[White "cailinchetty"]
[Black "Outsmiter"]
[Result "1-0"]
[WhiteElo "1942"]
[BlackElo "2076"]
[TimeControl "180+2"]
[EndTime "14:08:08 PDT"]
[Termination "cailinchetty won by resignation"]

1. e4 {[%clk 0:02:49.4]} 1... d6 {[%clk 0:03:00.9]} 2. d4 {[%clk 0:02:49.9]}
2... Nf6 {[%clk 0:03:02]} 3. Bd3 {[%clk 0:02:49.4]} 3... g6 {[%clk 0:03:02]} 4.
f3 {[%clk 0:02:48]} 4... Bg7 {[%clk 0:03:02.9]} 5. Ne2 {[%clk 0:02:49.2]} 5...
O-O {[%clk 0:03:03.6]} 6. Be3 {[%clk 0:02:49.8]} 6... e5 {[%clk 0:03:03.6]} 7.
d5 {[%clk 0:02:50.3]} 7... Nh5 {[%clk 0:02:51.1]} 8. c4 {[%clk 0:02:50.6]} 8...
f5 {[%clk 0:02:50.3]} 9. Nbc3 {[%clk 0:02:49.3]} 9... Nf6 {[%clk 0:02:50]} 10.
O-O {[%clk 0:02:45.9]} 10... f4 {[%clk 0:02:49.3]} 11. Bf2 {[%clk 0:02:46.5]}
11... a5 {[%clk 0:02:47.3]} 12. a3 {[%clk 0:02:45.8]} 12... Na6 {[%clk
0:02:46.9]} 13. Rb1 {[%clk 0:02:46.1]} 13... b6 {[%clk 0:02:42.6]} 14. b4 {[%clk
0:02:47.4]} 14... axb4 {[%clk 0:02:39.4]} 15. axb4 {[%clk 0:02:48]} 15... g5
{[%clk 0:02:39.1]} 16. c5 {[%clk 0:02:44.4]} 16... bxc5 {[%clk 0:02:23.7]} 17.
Bxa6 {[%clk 0:02:39.7]} 17... Bxa6 {[%clk 0:02:21.7]} 18. bxc5 {[%clk
0:02:38.2]} 18... g4 {[%clk 0:02:22.1]} 19. c6 {[%clk 0:02:32.5]} 19... Qe8
{[%clk 0:02:18.6]} 20. Kh1 {[%clk 0:02:31.1]} 20... Qh5 {[%clk 0:02:18]} 21.
fxg4 {[%clk 0:02:27.7]} 21... Nxg4 {[%clk 0:02:17.7]} 22. Bg1 {[%clk 0:02:27.1]}
22... Rf6 {[%clk 0:02:13.2]} 23. Rf3 {[%clk 0:02:28.3]} 23... Rh6 {[%clk
0:02:07.2]} 24. Rh3 {[%clk 0:02:26.9]} 24... Qg5 {[%clk 0:02:06.5]} 25. Rxh6
{[%clk 0:02:26.8]} 25... Bxh6 {[%clk 0:02:07.3]} 26. Nc1 {[%clk 0:02:22.2]}
26... Ne3 {[%clk 0:02:02.5]} 27. Bxe3 {[%clk 0:02:19.4]} 27... fxe3 {[%clk
0:02:04.4]} 28. N1e2 {[%clk 0:02:19.8]} 28... Rf8 {[%clk 0:02:03.3]} 29. Qg1
{[%clk 0:02:16.8]} 29... Rf2 {[%clk 0:02:01.2]} 30. Re1 {[%clk 0:02:09.7]} 30...
Kg7 {[%clk 0:01:38.7]} 31. Ng3 {[%clk 0:02:10.8]} 31... Kg6 {[%clk 0:01:30.1]}
32. Nd1 {[%clk 0:02:04.9]} 32... Qh4 {[%clk 0:00:58.3]} 33. Nxf2 {[%clk
0:01:59.3]} 33... exf2 {[%clk 0:00:56.3]} 34. Qxf2 {[%clk 0:01:59.1]} 34... Bf4
{[%clk 0:00:57]} 35. Kg1 {[%clk 0:01:54.9]} 35... Qg5 {[%clk 0:00:54.6]} 36. Nf1
{[%clk 0:01:51.6]} 36... h5 {[%clk 0:00:49.1]} 37. Kh1 {[%clk 0:01:46.8]} 37...
h4 {[%clk 0:00:47.9]} 38. g3 {[%clk 0:01:42.9]} 38... hxg3 {[%clk 0:00:47.4]}
39. hxg3 {[%clk 0:01:44]} 39... Qh5+ {[%clk 0:00:42]} 40. Kg2 {[%clk 0:01:42.9]}
40... Bg5 {[%clk 0:00:35.8]} 41. Ne3 {[%clk 0:01:40.3]} 41... Bxe3 {[%clk
0:00:27.6]} 42. Qxe3 {[%clk 0:01:37.5]} 42... Bc8 {[%clk 0:00:24.7]} 43. Qf3
{[%clk 0:01:36.8]} 43... Bh3+ {[%clk 0:00:20.1]} 44. Kf2 {[%clk 0:01:35.7]}
44... Qg5 {[%clk 0:00:21]} 45. Kg1 {[%clk 0:01:32.5]} 45... Bg4 {[%clk 0:00:21]}
46. Qf2 {[%clk 0:01:32.5]} 46... Qh5 {[%clk 0:00:19.8]} 47. Qf8 {[%clk
0:01:28.3]} 47... Bf3 {[%clk 0:00:19.7]} 48. Qe8+ {[%clk 0:01:27.7]} 48... Kg5
{[%clk 0:00:19.5]} 49. Qxh5+ {[%clk 0:01:28.9]} 49... Kxh5 {[%clk 0:00:21.4]}
50. Kf2 {[%clk 0:01:30.2]} 50... Kg4 {[%clk 0:00:21.6]} 51. Re3 {[%clk
0:01:30.9]} 51... Bh1 {[%clk 0:00:22.2]} 52. Kg1 {[%clk 0:01:28.8]} 52... Bf3
{[%clk 0:00:21.3]} 53. Kf2 {[%clk 0:01:30.2]} 53... Bh1 {[%clk 0:00:21.6]} 54.
Ke2 {[%clk 0:01:29.4]} 54... Bg2 {[%clk 0:00:22.3]} 55. Kd3 {[%clk 0:01:28.6]}
55... Bf3 {[%clk 0:00:22.7]} 56. Kc3 {[%clk 0:01:28.4]} 56... Kxg3 {[%clk
0:00:23.8]} 57. Kd3 {[%clk 0:01:25.4]} 57... Kf4 {[%clk 0:00:24]} 58. Re1 {[%clk
0:01:24.3]} 58... Bg2 {[%clk 0:00:24]} 59. Re2 {[%clk 0:01:25.1]} 59... Bf3
{[%clk 0:00:24.4]} 60. Rf2 {[%clk 0:01:26.1]} 60... Kg3 {[%clk 0:00:22.2]} 61.
Ke3 {[%clk 0:01:26.9]} 61... Bg2 {[%clk 0:00:23.1]} 62. Ra2 {[%clk 0:01:26.6]}
62... Kg4 {[%clk 0:00:19.4]} 63. Ra7 {[%clk 0:01:27]} 1-0

[Event "*** Qualifier 3: Titled Tuesday 3|2 Blitz"]
[Site "Chess.com"]
[Date "2017.04.18"]
[Round "5"]
[White "FearlessKing64"]
[Black "pastouche06"]
[Result "1/2-1/2"]
[WhiteElo "2158"]
[BlackElo "2317"]
[TimeControl "180+2"]
[EndTime "14:08:16 PDT"]
[Termination "Game drawn by stalemate"]

1. e4 {[%clk 0:03:02]} 1... c6 {[%clk 0:02:58.4]} 2. d4 {[%clk 0:03:02.5]} 2...
d5 {[%clk 0:02:12]} 3. exd5 {[%clk 0:03:03.2]} 3... cxd5 {[%clk 0:02:12.8]} 4.
c4 {[%clk 0:03:05.1]} 4... Nf6 {[%clk 0:02:13.8]} 5. Nc3 {[%clk 0:03:05.9]} 5...
Nc6 {[%clk 0:02:14.9]} 6. Nf3 {[%clk 0:03:07]} 6... Bg4 {[%clk 0:02:14.8]} 7.
cxd5 {[%clk 0:03:08.6]} 7... Nxd5 {[%clk 0:02:16.6]} 8. Qb3 {[%clk 0:03:09.8]}
8... Bxf3 {[%clk 0:02:17.5]} 9. gxf3 {[%clk 0:03:11.7]} 9... e6 {[%clk
0:02:17.2]} 10. Qxb7 {[%clk 0:03:07.9]} 10... Nxd4 {[%clk 0:02:17.2]} 11. Bb5+
{[%clk 0:03:09]} 11... Nxb5 {[%clk 0:02:18.2]} 12. Qc6+ {[%clk 0:03:10.4]} 12...
Ke7 {[%clk 0:02:19.3]} 13. Qxb5 {[%clk 0:03:06.2]} 13... Nxc3 {[%clk 0:02:20]}
14. bxc3 {[%clk 0:03:05.1]} 14... Rb8 {[%clk 0:02:21.2]} 15. Qa4 {[%clk
0:02:34]} 15... Qd7 {[%clk 0:01:42.1]} 16. Ba3+ {[%clk 0:02:16.8]} 16... Ke8
{[%clk 0:01:42.3]} 17. Qf4 {[%clk 0:02:14.4]} 17... Rc8 {[%clk 0:01:13.2]} 18.
Rd1 {[%clk 0:02:06.5]} 18... Qc7 {[%clk 0:01:09]} 19. Bd6 {[%clk 0:01:24.7]}
19... Qxc3+ {[%clk 0:01:04.6]} 20. Kf1 {[%clk 0:01:23.6]} 20... Qc4+ {[%clk
0:01:02.3]} 21. Kg2 {[%clk 0:01:13.5]} 21... Qxf4 {[%clk 0:01:00.2]} 22. Bxf4
{[%clk 0:01:14.4]} 22... Bc5 {[%clk 0:00:45.1]} 23. Rc1 {[%clk 0:01:04.3]} 23...
Ke7 {[%clk 0:00:25.8]} 24. Rc2 {[%clk 0:01:01.4]} 24... Bb6 {[%clk 0:00:21.9]}
25. Rd2 {[%clk 0:00:48.1]} 25... Rhd8 {[%clk 0:00:22]} 26. Rhd1 {[%clk 0:00:45]}
26... Rxd2 {[%clk 0:00:21.5]} 27. Rxd2 {[%clk 0:00:35.8]} 27... Rc6 {[%clk
0:00:22.9]} 28. h4 {[%clk 0:00:22]} 28... f6 {[%clk 0:00:24.1]} 29. h5 {[%clk
0:00:23]} 29... h6 {[%clk 0:00:22]} 30. Re2 {[%clk 0:00:16.8]} 30... Rc5 {[%clk
0:00:20.8]} 31. Rd2 {[%clk 0:00:14]} 31... Rd5 {[%clk 0:00:21]} 32. Rxd5 {[%clk
0:00:09.5]} 32... exd5 {[%clk 0:00:22.9]} 33. Kf1 {[%clk 0:00:11.3]} 33... Ke6
{[%clk 0:00:23.9]} 34. Ke2 {[%clk 0:00:11.1]} 34... Kf5 {[%clk 0:00:24.2]} 35.
Bd6 {[%clk 0:00:11]} 35... Kg5 {[%clk 0:00:24]} 36. Bf8 {[%clk 0:00:11.3]} 36...
Kxh5 {[%clk 0:00:24.3]} 37. Bxg7 {[%clk 0:00:12.3]} 37... Kg6 {[%clk 0:00:25.7]}
38. Bf8 {[%clk 0:00:12.3]} 38... Bc7 {[%clk 0:00:25.3]} 39. Ke3 {[%clk
0:00:11.7]} 39... Kf5 {[%clk 0:00:25]} 40. Bxh6 {[%clk 0:00:11.8]} 40... Bb6+
{[%clk 0:00:24.8]} 41. Ke2 {[%clk 0:00:12.7]} 41... Bc5 {[%clk 0:00:23]} 42. Be3
{[%clk 0:00:12.5]} 42... d4 {[%clk 0:00:23.6]} 43. Bd2 {[%clk 0:00:13.7]} 43...
Ke6 {[%clk 0:00:24.7]} 44. Kd3 {[%clk 0:00:14.6]} 44... Kd5 {[%clk 0:00:26.2]}
45. Bh6 {[%clk 0:00:11.4]} 45... Bd6 {[%clk 0:00:26.8]} 46. Bg7 {[%clk
0:00:12.3]} 46... Be5 {[%clk 0:00:26]} 47. f4 {[%clk 0:00:13.7]} 47... Bxf4
{[%clk 0:00:27.1]} 48. Bxf6 {[%clk 0:00:14.5]} 48... Be5 {[%clk 0:00:27]} 49.
Bxe5 {[%clk 0:00:14]} 49... Kxe5 {[%clk 0:00:28.4]} 50. f4+ {[%clk 0:00:15.4]}
50... Kxf4 {[%clk 0:00:29.6]} 51. Kxd4 {[%clk 0:00:16.8]} 51... a5 {[%clk
0:00:30.9]} 52. Kc5 {[%clk 0:00:17.6]} 52... Ke5 {[%clk 0:00:31.9]} 53. Kb5
{[%clk 0:00:18.9]} 53... Kd6 {[%clk 0:00:33.8]} 54. Kxa5 {[%clk 0:00:20.1]}
54... Kc7 {[%clk 0:00:35.7]} 55. Ka6 {[%clk 0:00:21.7]} 55... Kb8 {[%clk
0:00:37.6]} 56. a4 {[%clk 0:00:22.1]} 56... Ka8 {[%clk 0:00:39.5]} 57. Kb6
{[%clk 0:00:23]} 57... Kb8 {[%clk 0:00:41.4]} 58. a5 {[%clk 0:00:24.1]} 58...
Ka8 {[%clk 0:00:43.3]} 59. a6 {[%clk 0:00:25.7]} 59... Kb8 {[%clk 0:00:44.6]}
60. a7+ {[%clk 0:00:25.4]} 60... Ka8 {[%clk 0:00:46.5]} 61. Ka6 {[%clk
0:00:27.3]} 1/2-1/2

[Event "*** Qualifier 3: Titled Tuesday 3|2 Blitz"]
[Site "Chess.com"]
[Date "2017.04.18"]
[Round "5"]
[White "Bugcrusher"]
[Black "MyleneFarmer"]
[Result "1-0"]
[WhiteElo "2507"]
[BlackElo "2334"]
[TimeControl "180+2"]
[EndTime "14:08:47 PDT"]
[Termination "Bugcrusher won by resignation"]

1. d4 {[%clk 0:03:01.7]} 1... d5 {[%clk 0:02:58.9]} 2. Nf3 {[%clk 0:03:02.1]}
2... Nf6 {[%clk 0:02:59.7]} 3. e3 {[%clk 0:03:03.2]} 3... Bf5 {[%clk 0:02:57.2]}
4. c4 {[%clk 0:03:01.4]} 4... c6 {[%clk 0:02:58.1]} 5. Nc3 {[%clk 0:03:01.8]}
5... e6 {[%clk 0:02:57.6]} 6. Be2 {[%clk 0:03:02.5]} 6... Nbd7 {[%clk
0:02:57.5]} 7. O-O {[%clk 0:02:59.7]} 7... h6 {[%clk 0:02:57.6]} 8. Bd3 {[%clk
0:03:00.8]} 8... Bxd3 {[%clk 0:02:54]} 9. Qxd3 {[%clk 0:03:01.8]} 9... Bb4
{[%clk 0:02:50.5]} 10. Bd2 {[%clk 0:03:02.1]} 10... O-O {[%clk 0:02:46.5]} 11.
Nxd5 {[%clk 0:02:58.5]} 11... cxd5 {[%clk 0:01:56.8]} 12. Bxb4 {[%clk
0:02:56.3]} 12... dxc4 {[%clk 0:01:52.7]} 13. Qxc4 {[%clk 0:02:55.5]} 13... Nb6
{[%clk 0:01:53.7]} 14. Qb3 {[%clk 0:02:51.3]} 14... Re8 {[%clk 0:01:53.4]} 15.
Rac1 {[%clk 0:02:49.8]} 15... Rc8 {[%clk 0:01:51.6]} 16. Ba5 {[%clk 0:02:46.6]}
16... Qd6 {[%clk 0:01:43.6]} 17. Bxb6 {[%clk 0:02:44.4]} 17... axb6 {[%clk
0:01:43.9]} 18. h3 {[%clk 0:02:34.3]} 18... Nd5 {[%clk 0:01:33.6]} 19. Ne5
{[%clk 0:02:31.3]} 19... f6 {[%clk 0:01:31.3]} 20. Nd3 {[%clk 0:02:21.1]} 20...
Kh7 {[%clk 0:01:30.6]} 21. Rc4 {[%clk 0:01:57.4]} 21... e5 {[%clk 0:01:19.6]}
22. dxe5 {[%clk 0:01:45.5]} 22... fxe5 {[%clk 0:01:21.5]} 23. Rfc1 {[%clk
0:01:41.6]} 23... Rcd8 {[%clk 0:01:19.8]} 24. Nb4 {[%clk 0:01:31.5]} 24... Nf6
{[%clk 0:01:02.4]} 25. Rc7 {[%clk 0:01:27.2]} 25... Re7 {[%clk 0:00:58.6]} 26.
Rxe7 {[%clk 0:01:24.3]} 26... Qxe7 {[%clk 0:01:00.5]} 27. Nd3 {[%clk 0:01:19.6]}
27... Qd6 {[%clk 0:00:57.3]} 28. Ne1 {[%clk 0:01:14.9]} 28... Qd2 {[%clk
0:00:53.9]} 29. Qc2+ {[%clk 0:01:15.1]} 29... e4 {[%clk 0:00:43.3]} 30. Qxd2
{[%clk 0:01:12.9]} 30... Rxd2 {[%clk 0:00:45.2]} 31. Rc2 {[%clk 0:01:13.6]}
31... Rxc2 {[%clk 0:00:24.9]} 32. Nxc2 {[%clk 0:01:13.9]} 32... Kg6 {[%clk
0:00:26.1]} 33. f3 {[%clk 0:01:10.2]} 33... Kf5 {[%clk 0:00:26.8]} 34. Kf2
{[%clk 0:01:10.1]} 34... g5 {[%clk 0:00:26.6]} 35. Nd4+ {[%clk 0:01:08.4]} 35...
Ke5 {[%clk 0:00:27.9]} 36. Ne2 {[%clk 0:00:57.1]} 36... Nd5 {[%clk 0:00:28.7]}
37. fxe4 {[%clk 0:00:50.5]} 37... Nb4 {[%clk 0:00:23.3]} 38. Nc3 {[%clk
0:00:48.9]} 38... Nd3+ {[%clk 0:00:24.6]} 39. Kg3 {[%clk 0:00:46.8]} 39... h5
{[%clk 0:00:22.3]} 40. b3 {[%clk 0:00:42.3]} 40... Nb4 {[%clk 0:00:20.3]} 41. h4
{[%clk 0:00:41.8]} 41... g4 {[%clk 0:00:21.1]} 42. Kf2 {[%clk 0:00:41.2]} 42...
Nd3+ {[%clk 0:00:19.5]} 43. Ke2 {[%clk 0:00:42.2]} 43... Nc5 {[%clk 0:00:21]}
44. b4 {[%clk 0:00:35.8]} 44... Ne6 {[%clk 0:00:20.4]} 45. Kd3 {[%clk
0:00:34.3]} 45... Nd8 {[%clk 0:00:07.1]} 46. g3 {[%clk 0:00:34.7]} 46... Nc6
{[%clk 0:00:07]} 47. a3 {[%clk 0:00:35.3]} 47... Ne7 {[%clk 0:00:07.3]} 48. Ne2
{[%clk 0:00:36]} 48... Nc6 {[%clk 0:00:04.4]} 49. Nf4 {[%clk 0:00:36.7]} 49...
Kd6 {[%clk 0:00:05.2]} 50. Nxh5 {[%clk 0:00:36.6]} 50... Ne5+ {[%clk 0:00:07.1]}
51. Ke2 {[%clk 0:00:37.4]} 51... Nc4 {[%clk 0:00:07.1]} 52. Nf6 {[%clk
0:00:35.8]} 52... Ke5 {[%clk 0:00:08.3]} 53. Nxg4+ {[%clk 0:00:36.6]} 53... Kxe4
{[%clk 0:00:09.6]} 54. Nf6+ {[%clk 0:00:36]} 54... Kf5 {[%clk 0:00:10.7]} 55.
Nd5 {[%clk 0:00:36.7]} 55... Ke4 {[%clk 0:00:12]} 56. Nc3+ {[%clk 0:00:36.3]}
56... Ke5 {[%clk 0:00:12.8]} 57. Nb5 {[%clk 0:00:36.7]} 57... Nd6 {[%clk
0:00:12.8]} 58. Nxd6 {[%clk 0:00:37]} 58... Kxd6 {[%clk 0:00:14.7]} 59. Kd3
{[%clk 0:00:37.9]} 1-0

[Event "*** Qualifier 3: Titled Tuesday 3|2 Blitz"]
[Site "Chess.com"]
[Date "2017.04.18"]
[Round "5"]
[White "pKiLz5Rn9b"]
[Black "Konavets"]
[Result "0-1"]
[WhiteElo "2466"]
[BlackElo "2606"]
[TimeControl "180+2"]
[EndTime "14:09:05 PDT"]
[Termination "Konavets won by resignation"]

1. d4 {[%clk 0:03:02]} 1... f5 {[%clk 0:02:57.1]} 2. Nf3 {[%clk 0:03:02.1]} 2...
Nf6 {[%clk 0:02:58.2]} 3. g3 {[%clk 0:03:03.5]} 3... g6 {[%clk 0:02:58.7]} 4.
Bg2 {[%clk 0:03:05]} 4... Bg7 {[%clk 0:03:00.6]} 5. O-O {[%clk 0:03:06.6]} 5...
d6 {[%clk 0:03:02]} 6. c4 {[%clk 0:03:07.6]} 6... O-O {[%clk 0:03:02.7]} 7. Nc3
{[%clk 0:03:09.1]} 7... c6 {[%clk 0:03:03.8]} 8. Re1 {[%clk 0:03:07.1]} 8... Qe8
{[%clk 0:03:04.1]} 9. e4 {[%clk 0:03:04.6]} 9... fxe4 {[%clk 0:03:05.1]} 10.
Nxe4 {[%clk 0:03:05.9]} 10... Bg4 {[%clk 0:03:05.8]} 11. Nxf6+ {[%clk
0:03:02.7]} 11... Rxf6 {[%clk 0:03:06.5]} 12. h3 {[%clk 0:03:01.7]} 12... Bxf3
{[%clk 0:03:05.2]} 13. Bxf3 {[%clk 0:03:02.9]} 13... Qf7 {[%clk 0:03:06.6]} 14.
Kg2 {[%clk 0:02:46.3]} 14... h6 {[%clk 0:02:54.5]} 15. Qe2 {[%clk 0:02:39.2]}
15... Nd7 {[%clk 0:02:52.1]} 16. Bg4 {[%clk 0:02:31.5]} 16... e5 {[%clk
0:02:53.2]} 17. f4 {[%clk 0:02:21.1]} 17... Rf8 {[%clk 0:02:41.4]} 18. Be3
{[%clk 0:01:59.6]} 18... e4 {[%clk 0:02:20.7]} 19. d5 {[%clk 0:01:54]} 19... Kh7
{[%clk 0:02:13.1]} 20. Rad1 {[%clk 0:01:50.2]} 20... h5 {[%clk 0:02:10.7]} 21.
Be6 {[%clk 0:01:47.9]} 21... Rxe6 {[%clk 0:02:11.8]} 22. dxe6 {[%clk 0:01:49.8]}
22... Qxe6 {[%clk 0:02:13.7]} 23. Qd2 {[%clk 0:01:45.4]} 23... Qxc4 {[%clk
0:02:11.3]} 24. Qxd6 {[%clk 0:01:45.1]} 24... Nf6 {[%clk 0:02:12.2]} 25. b3
{[%clk 0:01:35.6]} 25... Qa6 {[%clk 0:02:10.5]} 26. Bd4 {[%clk 0:00:51.3]} 26...
Qxa2+ {[%clk 0:02:07.8]} 27. Kh1 {[%clk 0:00:49.8]} 27... Qxb3 {[%clk
0:02:08.5]} 28. Kh2 {[%clk 0:00:23.1]} 28... h4 {[%clk 0:02:04.3]} 29. gxh4
{[%clk 0:00:24.5]} 29... Nh5 {[%clk 0:02:03.4]} 30. Be3 {[%clk 0:00:20.4]} 30...
Rf5 {[%clk 0:01:52.8]} 31. Rg1 {[%clk 0:00:19]} 31... Rf6 {[%clk 0:01:47.5]} 32.
Qd2 {[%clk 0:00:12.7]} 32... Bh6 {[%clk 0:01:45]} 33. Rb1 {[%clk 0:00:13.1]}
33... Qf7 {[%clk 0:01:45.5]} 34. Rbf1 {[%clk 0:00:13.6]} 34... Nxf4 {[%clk
0:01:44.8]} 35. Rg4 {[%clk 0:00:12.1]} 35... Nd5 {[%clk 0:00:55]} 36. Rxf6
{[%clk 0:00:13]} 36... Qc7+ {[%clk 0:00:56.6]} 37. Kh1 {[%clk 0:00:03.9]} 37...
Bxe3 {[%clk 0:00:12]} 38. Qb2 {[%clk 0:00:04.8]} 38... Nxf6 {[%clk 0:00:10.7]}
39. Qxf6 {[%clk 0:00:06.7]} 39... Qg7 {[%clk 0:00:11.9]} 40. Qxg7+ {[%clk
0:00:07]} 40... Kxg7 {[%clk 0:00:13.8]} 41. Rxe4 {[%clk 0:00:08.4]} 41... Bc5
{[%clk 0:00:15.4]} 42. Re5 {[%clk 0:00:09.2]} 42... Bf8 {[%clk 0:00:15.1]} 43.
Re8 {[%clk 0:00:09.4]} 43... Bb4 {[%clk 0:00:07.1]} 44. Rb8 {[%clk 0:00:08]}
44... b5 {[%clk 0:00:08.1]} 45. Rb7+ {[%clk 0:00:08.1]} 45... Kf6 {[%clk
0:00:09.4]} 46. Rxa7 {[%clk 0:00:09.3]} 46... Ke5 {[%clk 0:00:10.8]} 47. Kg2
{[%clk 0:00:10.3]} 47... Kd4 {[%clk 0:00:10.8]} 48. Kf3 {[%clk 0:00:09.9]} 48...
c5 {[%clk 0:00:12.1]} 49. Ke2 {[%clk 0:00:11]} 49... c4 {[%clk 0:00:12.8]} 50.
Kd1 {[%clk 0:00:12.2]} 50... Bc5 {[%clk 0:00:10.6]} 51. Rg7 {[%clk 0:00:13.3]}
51... b4 {[%clk 0:00:12]} 52. Rxg6 {[%clk 0:00:14.3]} 52... b3 {[%clk
0:00:13.9]} 53. Rg3 {[%clk 0:00:10]} 53... c3 {[%clk 0:00:12.5]} 54. Rg2 {[%clk
0:00:08.1]} 54... Kd3 {[%clk 0:00:13.8]} 55. Rg3+ {[%clk 0:00:03.6]} 55... Be3
{[%clk 0:00:14.2]} 0-1

[Event "*** Qualifier 3: Titled Tuesday 3|2 Blitz"]
[Site "Chess.com"]
[Date "2017.04.18"]
[Round "5"]
[White "djano"]
[Black "Vamostodorecto"]
[Result "1-0"]
[WhiteElo "2362"]
[BlackElo "2369"]
[TimeControl "180+2"]
[EndTime "14:09:11 PDT"]
[Termination "djano won by checkmate"]

1. d4 {[%clk 0:03:02]} 1... d5 {[%clk 0:02:59.8]} 2. Bf4 {[%clk 0:03:02.8]} 2...
Nc6 {[%clk 0:02:59.1]} 3. e3 {[%clk 0:03:03.3]} 3... Nf6 {[%clk 0:02:57.8]} 4.
Nd2 {[%clk 0:03:02.2]} 4... Bg4 {[%clk 0:02:56.9]} 5. Ngf3 {[%clk 0:03:01.2]}
5... e6 {[%clk 0:02:57.9]} 6. c4 {[%clk 0:02:58]} 6... Bd6 {[%clk 0:02:57.9]} 7.
Bg5 {[%clk 0:02:54.5]} 7... h6 {[%clk 0:02:57.1]} 8. Bh4 {[%clk 0:02:42.5]} 8...
g5 {[%clk 0:02:56.8]} 9. Bg3 {[%clk 0:02:42.5]} 9... Ne4 {[%clk 0:02:54.8]} 10.
cxd5 {[%clk 0:02:19.7]} 10... exd5 {[%clk 0:02:51.8]} 11. Bxd6 {[%clk
0:02:12.9]} 11... Qxd6 {[%clk 0:02:51.4]} 12. Be2 {[%clk 0:02:02.1]} 12... f5
{[%clk 0:02:42.1]} 13. O-O {[%clk 0:01:51.7]} 13... O-O-O {[%clk 0:02:38.1]} 14.
Rc1 {[%clk 0:01:36.5]} 14... f4 {[%clk 0:02:38.1]} 15. exf4 {[%clk 0:01:35.2]}
15... gxf4 {[%clk 0:02:34.7]} 16. Ne5 {[%clk 0:01:25.7]} 16... Bxe2 {[%clk
0:02:30.9]} 17. Qxe2 {[%clk 0:01:03.5]} 17... Nxd4 {[%clk 0:02:30.4]} 18. Qg4+
{[%clk 0:01:03.7]} 18... Kb8 {[%clk 0:02:29]} 19. Nxe4 {[%clk 0:01:00.1]} 19...
dxe4 {[%clk 0:02:30.9]} 20. Nf7 {[%clk 0:00:53.1]} 20... Qd5 {[%clk 0:02:08.5]}
21. Nxh8 {[%clk 0:00:42.3]} 21... Rxh8 {[%clk 0:02:07.8]} 22. Kh1 {[%clk
0:00:42.8]} 22... Rg8 {[%clk 0:01:57.3]} 23. Qh3 {[%clk 0:00:37.6]} 23... f3
{[%clk 0:01:40.2]} 24. g3 {[%clk 0:00:38.9]} 24... a6 {[%clk 0:01:28.7]} 25.
Rfd1 {[%clk 0:00:32.6]} 25... Qe5 {[%clk 0:01:26.6]} 26. Qd7 {[%clk 0:00:30.7]}
26... Ne2 {[%clk 0:01:24.9]} 27. Rc2 {[%clk 0:00:22.9]} 27... Rg7 {[%clk
0:01:15.2]} 28. Qd5 {[%clk 0:00:22.6]} 28... Qe7 {[%clk 0:00:52.8]} 29. Qc4
{[%clk 0:00:21.3]} 29... Rg5 {[%clk 0:00:46.5]} 30. Rxe2 {[%clk 0:00:19.1]}
30... fxe2 {[%clk 0:00:48.4]} 31. Qxe2 {[%clk 0:00:20.5]} 31... Re5 {[%clk
0:00:43.4]} 32. Qe3 {[%clk 0:00:21]} 32... Rh5 {[%clk 0:00:38.8]} 33. h4 {[%clk
0:00:20.5]} 33... Qe6 {[%clk 0:00:39.2]} 34. Kg2 {[%clk 0:00:20.2]} 34... b6
{[%clk 0:00:30.7]} 35. Rd4 {[%clk 0:00:19.6]} 35... Re5 {[%clk 0:00:30.1]} 36.
Rd8+ {[%clk 0:00:19.9]} 36... Kb7 {[%clk 0:00:30.1]} 37. Rh8 {[%clk 0:00:21.4]}
37... Qxa2 {[%clk 0:00:26.5]} 38. Qxh6 {[%clk 0:00:15]} 38... e3 {[%clk
0:00:24.8]} 39. Qf8 {[%clk 0:00:14.7]} 39... Qd5+ {[%clk 0:00:20.1]} 40. Kh2
{[%clk 0:00:14.1]} 40... Kc6 {[%clk 0:00:17.2]} 41. Qa8+ {[%clk 0:00:12.5]}
41... Kc5 {[%clk 0:00:17.7]} 42. Qxd5+ {[%clk 0:00:13.4]} 42... Kxd5 {[%clk
0:00:19.6]} 43. fxe3 {[%clk 0:00:14.1]} 43... Rxe3 {[%clk 0:00:20.7]} 44. h5
{[%clk 0:00:14.2]} 44... Re2+ {[%clk 0:00:21.2]} 45. Kh3 {[%clk 0:00:15.6]}
45... Rxb2 {[%clk 0:00:21.5]} 46. h6 {[%clk 0:00:17]} 46... Rb1 {[%clk
0:00:19.8]} 47. g4 {[%clk 0:00:17.1]} 47... Rh1+ {[%clk 0:00:19.6]} 48. Kg3
{[%clk 0:00:17.7]} 48... Ke5 {[%clk 0:00:18.1]} 49. g5 {[%clk 0:00:19.1]} 49...
Kf5 {[%clk 0:00:18.7]} 50. Rg8 {[%clk 0:00:19.9]} 50... a5 {[%clk 0:00:17.1]}
51. Rg7 {[%clk 0:00:19.4]} 51... Rh5 {[%clk 0:00:15.4]} 52. h7 {[%clk
0:00:20.1]} 52... a4 {[%clk 0:00:14.9]} 53. g6 {[%clk 0:00:21.4]} 53... a3
{[%clk 0:00:14.2]} 54. Rg8 {[%clk 0:00:22.4]} 54... a2 {[%clk 0:00:14.1]} 55. g7
{[%clk 0:00:21.7]} 55... a1=Q {[%clk 0:00:07.8]} 56. Rf8+ {[%clk 0:00:18.1]}
56... Ke6 {[%clk 0:00:07.2]} 57. g8=Q+ {[%clk 0:00:19.2]} 57... Kd6 {[%clk
0:00:05.9]} 58. Qg6+ {[%clk 0:00:19.9]} 58... Ke7 {[%clk 0:00:02.2]} 59. Re8+
{[%clk 0:00:19.9]} 59... Kd7 {[%clk 0:00:02.9]} 60. Qe6# {[%clk 0:00:21.5]} 1-0